[Event "Schachfestival Open-A 2018"]
[Site "Lueneburg"]
[Date "2018.07.09"]
[Round "5"]
[White "Hesse, Henrik"]
[Black "Sebastian, Dirk"]
[Result "1/2-1/2"]
[ECO "A30"]
[WhiteElo "2057"]
[BlackElo "2447"]
[Annotator "NA RC"]
[PlyCount "116"]
[EventDate "2018.07.06"]
[EventType "swiss"]
[EventCountry "GER"]
[SourceTitle "playchess.com"]
[Source "ChessBase"]
[SourceQuality "1"]
[TimeControl "40/5400+30:1800+30"]

1. c4 {[%emt 0:00:00]} c5 {[%emt 0:00:02]} 2. Nf3 {[%emt 0:00:00]} Nc6 {[%emt 0:00:28]} 3. d4 {[%emt 0:02:44]} cxd4 {[%emt 0:00:07]} 4. Nxd4 {[%emt 0:00:07]} e6 {[%emt 0:02:12]} 5. Nc3 {[%emt 0:05:43]} Bb4 {[%emt 0:02:24]} 6. Ndb5 {[%emt 0:05:35]} Nf6 {[%emt 0:01:15]} 7. a3 {[%emt 0:04:13]} Bxc3+ {[%emt 0:00:57]} 8. Nxc3 {[%emt 0:00:10]} d5 {[%emt 0:08:29]} 9. Bg5 {[%emt 0:19:51]} d4 {[%emt 0:07:04]} 10. Ne4 {[%emt 0:05:56]} Qa5+ {[%emt 0:02:20]} 11. b4 {[%emt 0:02:04]} Qe5 {[%emt 0:00:33]} 12. Nxf6+ {[%emt 0:19:20]} gxf6 {[%emt 0:00:50]} 13. Bh4 {[%emt 0:01:46]} a5 {[%emt 0:17:16]} 14. Bg3 {[%emt 0:14:12]} Qe4 {[%emt 0:00:17]} 15. b5 {[%emt 0:01:48]} Ne5 {[%emt 0:06:43]} 16. Bxe5 {[%emt 0:02:07]} fxe5 {[%emt 0:02:23]} 17. Qd3 {[%emt 0:00:50]} f5 {[%emt 0:08:16]} 18. Qxe4 {[%emt 0:02:16]} fxe4 {[%emt 0:00:01]} 19. e3 {[%emt 0:05:08]} Ke7 {[%emt 0:06:35]} 20. O-O-O {[%emt 0:01:03]} Rd8 {[%emt 0:02:58]} 21. exd4 {[%emt 0:00:46]} Rxd4 {[%emt 0:02:56]} 22. Be2 {[%emt 0:01:08]} Bd7 {[%emt 0:02:06]} 23. Rd2 {[%emt 0:01:03]} Rg8 {[%emt 0:03:48]} 24. Rg1 {[%emt 0:00:22]} Be8 {[%emt 0:01:18]} 25. Kc2 {[%emt 0:00:47]} Kd6 {[%emt 0:02:44]} 26. g3 {[%emt 0:00:01]} Rf8 {[%emt 0:01:14]} 27. Rf1 {[%emt 0:00:54]} Bg6 {[%emt 0:01:00]} 28. Kc3 {[%emt 0:00:20]} Kc5 {[%emt 0:00:09]} 29. h4 {[%emt 0:01:54]} h6 {[%emt 0:04:14]} 30. f3 {[%emt 0:00:45]} e3 {[%emt 0:03:00]} 31. Rdd1 {[%emt 0:00:23]} Rfd8 {[%emt 0:01:31]} 32. g4 {[%emt 0:00:37]} a4 {[%emt 0:03:22]} 33. Rfe1 {[%emt 0:00:01]} Rd2 {[%emt 0:02:24]} 34. Rxd2 {[%emt 0:00:01]} Rxd2 {[%emt 0:00:01]} 35. Bd1 {[%emt 0:00:35]} Rd3+ {[%emt 0:00:43]} 36. Kb2 {[%emt 0:00:07]} Kxc4 {[%emt 0:01:10]} 37. Be2 {[%emt 0:01:20]} Kd4 {[%emt 0:02:09]} 38. Bxd3 {[%emt 0:00:01]} Bxd3 {[%emt 0:00:01]} 39. g5 {[%emt 0:00:36]} hxg5 {[%emt 0:03:12]} 40. hxg5 {[%emt 0:00:02]} e2 {[%emt 0:00:57]} 41. g6 {[%emt 0:03:46]} Bxg6 {[%emt 0:01:33]} 42. Rxe2 {[%emt 0:00:07]} Bd3 {[%emt 0:02:33]} 43. Rd2 {[%emt 0:05:31]} Ke3 {[%emt 0:01:31]} 44. Kc3 {[%emt 0:00:06]} Bxb5 {[%emt 0:00:06]} 45. Rd6 {[%emt 0:00:07]} Kxf3 {[%emt 0:01:36]} 46. Rxe6 {[%emt 0:00:12]} Ke4 {[%emt 0:01:19]} 47. Kb4 {[%emt 0:01:23]} Bc6 {[%emt 0:00:46]} 48. Kc5 {[%emt 0:01:01]} Kf4 {[%emt 0:02:46]} 49. Re7 {[%emt 0:01:11]} Kf5 {[%emt 0:07:03]} 50. Kd6 {[%emt 0:01:57]} e4 {[%emt 0:00:10]} 51. Kc5 {[%emt 0:00:08]} Kf4 {[%emt 0:01:13]} 52. Kd4 {[%emt 0:00:39]} Kf3 {[%emt 0:00:24]} 53. Rh7 {[%emt 0:01:56]} Kf2 {[%emt 0:01:05]} 54. Rh2+ {[%emt 0:00:52]} Kg3 {[%emt 0:02:40]} 55. Re2 {[%emt 0:03:51]} Kf3 {[%emt 0:00:20]} 56. Re3+ {[%emt 0:00:15]} Kf2 {[%emt 0:00:24]} 57. Rc3 {[%emt 0:00:23]} Ke2 {[%emt 0:00:46]} 58. Rc2+ {[%emt 0:00:25]} Kf3 {[%emt 0:03:00] Kxe4+} 1/2-1/2

[Event "Schachfestival Open-A 2018"]
[Site "Lueneburg"]
[Date "2018.07.09"]
[Round "5"]
[White "Wobbe, Sven"]
[Black "Ngo, Minh Duc"]
[Result "0-1"]
[ECO "B31"]
[WhiteElo "2049"]
[BlackElo "2191"]
[Annotator "NA"]
[PlyCount "99"]
[EventDate "2018.07.06"]
[EventType "swiss"]
[EventCountry "GER"]
[SourceTitle "playchess.com"]
[Source "ChessBase"]
[SourceQuality "1"]
[TimeControl "40/5400+30:1800+30"]

1. e4 {[%emt 0:00:00]} c5 {[%emt 0:00:00]} 2. Nf3 {[%emt 0:00:04]} Nc6 {[%emt 0:00:00]} 3. Bb5 {[%emt 0:00:28]} g6 {[%emt 0:00:00]} 4. O-O {[%emt 0:00:34]} Bg7 {[%emt 0:00:00]} 5. c3 {[%emt 0:03:41]} Nh6 {[%emt 0:00:55]} 6. d4 {[%emt 0:02:49]} Qb6 {[%emt 0:09:00]} 7. Ba4 {[%emt 0:06:20]} O-O {[%emt 0:05:48]} 8. d5 {[%emt 0:06:52]} Nb8 {[%emt 0:00:57]} 9. Nbd2 {[%emt 0:03:28]} d6 {[%emt 0:00:09]} 10. Bc2 {[%emt 0:03:21]} Nd7 {[%emt 0:02:52]} 11. Nc4 {[%emt 0:05:55]} Qc7 {[%emt 0:00:35]} 12. a4 {[%emt 0:00:29]} b6 {[%emt 0:03:02]} 13. h3 {[%emt 0:01:47]} a6 {[%emt 0:03:19]} 14. Bf4 {[%emt 0:09:20]} f6 {[%emt 0:00:02]} 15. Qd2 {[%emt 0:06:10]} Nf7 {[%emt 0:00:03]} 16. h4 {[%emt 0:01:04]} Rb8 {[%emt 0:02:02]} 17. h5 {[%emt 0:05:18]} g5 {[%emt 0:01:47]} 18. e5 {[%emt 0:08:25]} Ndxe5 {[%emt 0:01:05]} 19. Bxe5 {[%emt 0:02:21]} Nxe5 {[%emt 0:00:32]} 20. Ncxe5 {[%emt 0:05:57]} dxe5 {[%emt 0:00:06]} 21. Qd3 {[%emt 0:00:57]} f5 {[%emt 0:00:42]} 22. Nxg5 {[%emt 0:00:40]} e4 {[%emt 0:00:46]} 23. Qe2 {[%emt 0:04:35]} Kh8 {[%emt 0:04:07]} 24. Rad1 {[%emt 0:07:46]} Qf4 {[%emt 0:02:32]} 25. Ne6 {[%emt 0:01:14]} Bxe6 {[%emt 0:00:03]} 26. dxe6 {[%emt 0:00:06]} Be5 {[%emt 0:00:50]} 27. g3 {[%emt 0:00:38]} Qh6 {[%emt 0:00:24]} 28. f4 {[%emt 0:03:47]} Bd6 {[%emt 0:01:34]} 29. Bb3 {[%emt 0:01:08]} Rg8 {[%emt 0:00:34]} 30. Kf2 {[%emt 0:00:56]} b5 {[%emt 0:01:35]} 31. axb5 {[%emt 0:00:34]} axb5 {[%emt 0:00:09]} 32. Bd5 {[%emt 0:01:55]} Rg4 {[%emt 0:03:45]} 33. Bxe4 {[%emt 0:00:39]} Qxh5 {[%emt 0:01:04]} 34. Rh1 {[%emt 0:02:52]} Qg6 {[%emt 0:00:13]} 35. Bc6 {[%emt 0:01:27]} Rd8 {[%emt 0:19:43]} 36. Rh3 {[%emt 0:01:48]} c4 {[%emt 0:02:11]} 37. Rxd6 {[%emt 0:01:38]} Rxd6 {[%emt 0:00:09]} 38. Bf3 {[%emt 0:00:25]} Qxe6 {[%emt 0:00:21]} 39. Bxg4 {[%emt 0:00:44]} fxg4 {[%emt 0:00:02]} 40. Qxe6 {[%emt 0:00:17]} Rxe6 {[%emt 0:00:02]} 41. Rh5 {[%emt 0:30:22]} b4 {[%emt 0:31:47]} 42. cxb4 {[%emt 0:01:31]} Rd6 {[%emt 0:00:04]} 43. Rc5 {[%emt 0:00:00]} Rd2+ {[%emt 0:00:00]} 44. Ke3 {[%emt 0:00:00]} Rg2 {[%emt 0:00:00]} 45. b5 {[%emt 0:00:00]} Rxg3+ {[%emt 0:00:00]} 46. Kd4 {[%emt 0:00:00]} h6 {[%emt 0:00:00]} 47. Kxc4 {[%emt 0:00:00]} Rf3 {[%emt 0:00:00]} 48. b6 {[%emt 0:00:00]} Rxf4+ {[%emt 0:00:00]} 49. Kb5 {[%emt 0:00:00]} Rf2 {[%emt 0:00:00]} 50. b4 {[%emt 0:00:00]} 0-1

[Event "Schachfestival Open-A 2018"]
[Site "Lueneburg"]
[Date "2018.07.09"]
[Round "5"]
[White "Popvasilev, Kaloyan"]
[Black "Hess, Christian Mathias"]
[Result "1/2-1/2"]
[ECO "B19"]
[WhiteElo "2020"]
[BlackElo "2243"]
[Annotator "NA"]
[PlyCount "67"]
[EventDate "2018.07.06"]
[EventType "swiss"]
[EventCountry "GER"]
[SourceTitle "playchess.com"]
[Source "ChessBase"]
[SourceQuality "1"]
[TimeControl "40/5400+30:1800+30"]

1. e4 {[%emt 0:00:00]} c6 {[%emt 0:00:00]} 2. d4 {[%emt 0:00:00]} d5 {[%emt 0:00:01]} 3. Nc3 {[%emt 0:00:00]} dxe4 {[%emt 0:00:06]} 4. Nxe4 {[%emt 0:00:00]} Bf5 {[%emt 0:00:26]} 5. Ng3 {[%emt 0:00:05]} Bg6 {[%emt 0:00:04]} 6. h4 {[%emt 0:00:14]} h6 {[%emt 0:00:10]} 7. Nf3 {[%emt 0:00:16]} Nd7 {[%emt 0:00:46]} 8. h5 {[%emt 0:00:12]} Bh7 {[%emt 0:00:05]} 9. Bd3 {[%emt 0:00:15]} Bxd3 {[%emt 0:00:06]} 10. Qxd3 {[%emt 0:00:05]} e6 {[%emt 0:01:17]} 11. Bd2 {[%emt 0:01:00]} Ngf6 {[%emt 0:00:43]} 12. O-O-O {[%emt 0:00:50]} Be7 {[%emt 0:00:48]} 13. Kb1 {[%emt 0:29:38]} O-O {[%emt 0:01:48]} 14. Qe2 {[%emt 0:01:19]} Qc7 {[%emt 0:25:31]} 15. Ne5 {[%emt 0:06:51]} Rad8 {[%emt 0:12:31]} 16. Ng6 {[%emt 0:09:13]} Rfe8 {[%emt 0:01:49]} 17. Nxe7+ {[%emt 0:01:57]} Rxe7 {[%emt 0:00:03]} 18. Qf3 {[%emt 0:09:41]} Ree8 {[%emt 0:06:49]} 19. Rh4 {[%emt 0:13:07]} Qd6 {[%emt 0:22:30]} 20. c4 {[%emt 0:06:21]} b5 {[%emt 0:05:18]} 21. Bf4 {[%emt 0:03:20]} Qb4 {[%emt 0:02:02]} 22. c5 {[%emt 0:00:55]} Nd5 {[%emt 0:04:44]} 23. Bd2 {[%emt 0:01:41]} Qa4 {[%emt 0:00:13]} 24. Ne4 {[%emt 0:03:30]} f5 {[%emt 0:05:26]} 25. Nd6 {[%emt 0:01:43]} Re7 {[%emt 0:00:18]} 26. b3 {[%emt 0:02:02]} Qa3 {[%emt 0:00:03]} 27. g4 {[%emt 0:02:19]} N7f6 {[%emt 0:01:56]} 28. gxf5 {[%emt 0:02:29]} Rxd6 {[%emt 0:01:56]} 29. cxd6 {[%emt 0:00:13]} Qxd6 {[%emt 0:00:06]} 30. fxe6 {[%emt 0:01:47]} Rxe6 {[%emt 0:00:13]} 31. Bf4 {[%emt 0:03:16]} Qb4 {[%emt 0:02:07]} 32. Bd2 {[%emt 0:00:03]} Qd6 {[%emt 0:00:16]} 33. Bf4 {[%emt 0:00:04]} Qb4 {[%emt 0:00:04]} 34. Bd2 {[%emt 0:00:02]} 1/2-1/2

[Event "Schachfestival Open-A 2018"]
[Site "Lueneburg"]
[Date "2018.07.11"]
[Round "7"]
[White "Buchenau, Frank"]
[Black "Stolberg-Rohr, Thomine"]
[Result "1-0"]
[ECO "C50"]
[WhiteElo "2275"]
[BlackElo "1975"]
[Annotator "NA"]
[PlyCount "77"]
[EventDate "2018.07.06"]
[EventType "swiss"]
[EventCountry "GER"]
[SourceTitle "playchess.com"]
[Source "ChessBase"]
[SourceQuality "1"]
[TimeControl "40/5400+30:1800+30"]

1. e4 {[%emt 0:05:05]} e5 {[%emt 0:00:21]} 2. Nf3 {[%emt 0:00:16]} Nc6 {[%emt 0:00:09]} 3. Bc4 {[%emt 0:00:11]} Bc5 {[%emt 0:00:15]} 4. O-O {[%emt 0:00:13]} Nf6 {[%emt 0:00:30]} 5. d3 {[%emt 0:00:09]} a6 {[%emt 0:00:51]} 6. c3 {[%emt 0:00:58]} d6 {[%emt 0:00:36]} 7. Bb3 {[%emt 0:00:18]} Ba7 {[%emt 0:00:14]} 8. Nbd2 {[%emt 0:00:34]} O-O {[%emt 0:00:45]} 9. h3 {[%emt 0:00:15]} Ne7 {[%emt 0:01:48]} 10. Re1 {[%emt 0:00:54]} Ng6 {[%emt 0:00:32]} 11. Nf1 {[%emt 0:00:23]} Be6 {[%emt 0:05:36]} 12. Ng3 {[%emt 0:01:58]} h6 {[%emt 0:05:54]} 13. d4 {[%emt 0:01:52]} Qe7 {[%emt 0:09:00]} 14. Be3 {[%emt 0:03:16]} c6 {[%emt 0:04:01]} 15. Bc2 {[%emt 0:06:29]} b5 {[%emt 0:06:02]} 16. Qd2 {[%emt 0:01:34]} c5 {[%emt 0:02:47]} 17. Nf5 {[%emt 0:09:47]} Bxf5 {[%emt 0:08:41]} 18. exf5 {[%emt 0:00:13]} cxd4 {[%emt 0:01:37]} 19. cxd4 {[%emt 0:00:52]} Nh8 {[%emt 0:11:14]} 20. dxe5 {[%emt 0:02:30]} dxe5 {[%emt 0:00:44]} 21. Bxa7 {[%emt 0:00:33]} Qxa7 {[%emt 0:00:28]} 22. Rxe5 {[%emt 0:03:07]} Rac8 {[%emt 0:09:56]} 23. Bb3 {[%emt 0:01:06]} Rfd8 {[%emt 0:02:25]} 24. Qb4 {[%emt 0:02:23]} Re8 {[%emt 0:04:01]} 25. Rae1 {[%emt 0:02:27]} Rxe5 {[%emt 0:01:20]} 26. Nxe5 {[%emt 0:00:41]} Qc5 {[%emt 0:04:05]} 27. Qxc5 {[%emt 0:02:19]} Rxc5 {[%emt 0:02:10]} 28. f4 {[%emt 0:07:03]} Rc7 {[%emt 0:07:06]} 29. g4 {[%emt 0:02:55]} Kf8 {[%emt 0:01:47]} 30. Rd1 {[%emt 0:03:04]} Ke7 {[%emt 0:01:14]} 31. a4 {[%emt 0:01:57]} Ne8 {[%emt 0:02:52]} 32. axb5 {[%emt 0:04:19]} axb5 {[%emt 0:00:13]} 33. Re1 {[%emt 0:03:04]} Kf8 {[%emt 0:00:58]} 34. Kf2 {[%emt 0:01:44]} Nd6 {[%emt 0:01:28]} 35. Ra1 {[%emt 0:00:58]} Ke7 {[%emt 0:03:10]} 36. Ra8 {[%emt 0:00:26]} Nc8 {[%emt 0:01:13]} 37. Rb8 {[%emt 0:00:30]} g6 {[%emt 0:01:54]} 38. Nxf7 {[%emt 0:02:59]} Nxf7 {[%emt 0:00:26]} 39. fxg6 {[%emt 0:00:09]} 1-0

[Event "Schachfestival Open-A 2018"]
[Site "Lueneburg"]
[Date "2018.07.11"]
[Round "7"]
[White "Weishaeutel, Moritz"]
[Black "Matzat, Andre"]
[Result "1-0"]
[ECO "B23"]
[WhiteElo "2236"]
[BlackElo "2081"]
[Annotator "NA"]
[PlyCount "95"]
[EventDate "2018.07.06"]
[EventType "swiss"]
[EventCountry "GER"]
[SourceTitle "playchess.com"]
[Source "ChessBase"]
[SourceQuality "1"]
[TimeControl "40/5400+30:1800+30"]

1. e4 {[%emt 0:00:00]} c5 {[%emt 0:00:00]} 2. Nc3 {[%emt 0:00:18]} e6 {[%emt 0:00:08]} 3. Nge2 {[%emt 0:01:17]} a6 {[%emt 0:00:28]} 4. g3 {[%emt 0:04:28]} b5 {[%emt 0:01:14]} 5. d4 {[%emt 0:04:20]} cxd4 {[%emt 0:01:00]} 6. Nxd4 {[%emt 0:00:25]} Bb7 {[%emt 0:00:06]} 7. Bg2 {[%emt 0:01:02]} Nf6 {[%emt 0:00:08]} 8. Qd3 {[%emt 0:03:52]} d6 {[%emt 0:04:32]} 9. O-O {[%emt 0:07:14]} Nbd7 {[%emt 0:00:35]} 10. a3 {[%emt 0:05:03]} Be7 {[%emt 0:02:45]} 11. Qe2 {[%emt 0:05:00]} Ne5 {[%emt 0:05:02]} 12. f4 {[%emt 0:12:38]} Qb6 {[%emt 0:03:52]} 13. Be3 {[%emt 0:02:44]} Neg4 {[%emt 0:00:51]} 14. Nf5 {[%emt 0:09:07]} Nxe3 {[%emt 0:00:21]} 15. Qxe3 {[%emt 0:00:04]} Qxe3+ {[%emt 0:00:32]} 16. Nxe3 {[%emt 0:00:01]} Bd8 {[%emt 0:06:49]} 17. Rfe1 {[%emt 0:12:15]} Bb6 {[%emt 0:00:26]} 18. Kh1 {[%emt 0:10:00]} Rc8 {[%emt 0:08:33]} 19. Rad1 {[%emt 0:01:36]} Rxc3 {[%emt 0:04:17]} 20. bxc3 {[%emt 0:00:08]} Nxe4 {[%emt 0:00:26]} 21. Ng4 {[%emt 0:06:43]} d5 {[%emt 0:09:02]} 22. Bxe4 {[%emt 0:03:32]} dxe4 {[%emt 0:00:12]} 23. Ne3 {[%emt 0:00:03]} Ke7 {[%emt 0:01:10]} 24. c4 {[%emt 0:01:34]} Rc8 {[%emt 0:05:26]} 25. Rb1 {[%emt 0:03:34]} Ba7 {[%emt 0:05:20]} 26. cxb5 {[%emt 0:01:06]} Bd4 {[%emt 0:04:39]} 27. bxa6 {[%emt 0:00:48]} Bxa6 {[%emt 0:00:21]} 28. Kg2 {[%emt 0:02:12]} f5 {[%emt 0:01:50]} 29. g4 {[%emt 0:01:12]} g6 {[%emt 0:00:39]} 30. c4 {[%emt 0:01:10]} h6 {[%emt 0:00:51]} 31. h4 {[%emt 0:00:17]} Bc5 {[%emt 0:03:08]} 32. g5 {[%emt 0:01:43]} h5 {[%emt 0:00:25]} 33. a4 {[%emt 0:00:25]} Rd8 {[%emt 0:00:17]} 34. Rbd1 {[%emt 0:00:17]} Ra8 {[%emt 0:06:21]} 35. Rb1 {[%emt 0:00:13]} Ra7 {[%emt 0:00:18]} 36. Kf2 {[%emt 0:00:56]} e5 {[%emt 0:02:47]} 37. Ke2 {[%emt 0:00:35]} Ke6 {[%emt 0:00:48]} 38. Ng2 {[%emt 0:00:35]} Bxc4+ {[%emt 0:00:29]} 39. Kd2 {[%emt 0:00:16]} Rxa4 {[%emt 0:02:41]} 40. Ra1 {[%emt 0:00:25]} Ba2 {[%emt 0:08:19]} 41. Rec1 {[%emt 0:03:20]} Bd6 {[%emt 0:04:27]} 42. fxe5 {[%emt 0:05:45]} Bxe5 {[%emt 0:01:04]} 43. Rc6+ {[%emt 0:00:07]} Kd5 {[%emt 0:01:51]} 44. Rac1 {[%emt 0:00:07]} Rd4+ {[%emt 0:01:13]} 45. Ke2 {[%emt 0:00:37]} Bc4+ {[%emt 0:00:46]} 46. R6xc4 {[%emt 0:00:06]} Rd3 {[%emt 0:01:14]} 47. Rc6 {[%emt 0:06:32]} Bd6 {[%emt 0:00:53]} 48. Ne3+ {[%emt 0:01:17]} 1-0

[Event "Schachfestival Open-A 2018"]
[Site "Lueneburg"]
[Date "2018.07.11"]
[Round "7"]
[White "Bente, Bjoern"]
[Black "Bosselmann, Tom Linus"]
[Result "1-0"]
[ECO "B90"]
[WhiteElo "2219"]
[BlackElo "2036"]
[Annotator "NA"]
[PlyCount "49"]
[EventDate "2018.07.06"]
[EventType "swiss"]
[EventCountry "GER"]
[SourceTitle "playchess.com"]
[Source "ChessBase"]
[SourceQuality "1"]
[TimeControl "40/5400+30:1800+30"]

1. e4 {[%emt 0:00:00]} c5 {[%emt 0:00:00]} 2. Nf3 {[%emt 0:00:07]} a6 {[%emt 0:00:00]} 3. Nc3 {[%emt 0:00:11]} d6 {[%emt 0:02:19]} 4. d4 {[%emt 0:00:19]} cxd4 {[%emt 0:00:08]} 5. Nxd4 {[%emt 0:00:04]} Nf6 {[%emt 0:00:10]} 6. f3 {[%emt 0:00:22]} e5 {[%emt 0:00:25]} 7. Nb3 {[%emt 0:00:04]} Be6 {[%emt 0:00:06]} 8. Be3 {[%emt 0:00:10]} Be7 {[%emt 0:00:14]} 9. g4 {[%emt 0:00:30]} Qc7 {[%emt 0:00:26]} 10. Qd2 {[%emt 0:00:43]} O-O {[%emt 0:00:54]} 11. O-O-O {[%emt 0:00:53]} Nbd7 {[%emt 0:00:14]} 12. h4 {[%emt 0:04:47]} b5 {[%emt 0:01:23]} 13. Qf2 {[%emt 0:05:47]} b4 {[%emt 0:01:12]} 14. Nd5 {[%emt 0:00:04]} Bxd5 {[%emt 0:00:11]} 15. exd5 {[%emt 0:00:04]} Nc5 {[%emt 0:10:24]} 16. Kb1 {[%emt 0:03:43]} Rfb8 {[%emt 0:03:11]} 17. h5 {[%emt 0:01:42]} a5 {[%emt 0:04:35]} 18. g5 {[%emt 0:00:30]} Ne8 {[%emt 0:00:57]} 19. g6 {[%emt 0:00:32]} a4 {[%emt 0:01:25]} 20. Nxc5 {[%emt 0:09:47]} dxc5 {[%emt 0:01:01]} 21. gxf7+ {[%emt 0:02:42]} Kxf7 {[%emt 0:00:03]} 22. h6 {[%emt 0:05:19]} c4 {[%emt 0:04:45]} 23. hxg7 {[%emt 0:01:00]} Kxg7 {[%emt 0:00:57]} 24. Qg3+ {[%emt 0:01:10]} Kh8 {[%emt 0:01:42]} 25. Rxh7+ {[%emt 0:03:45]} 1-0

[Event "Schachfestival Open-A 2018"]
[Site "Lueneburg"]
[Date "2018.07.11"]
[Round "7"]
[White "Poeck, Ole"]
[Black "Bogachkova, Alena"]
[Result "0-1"]
[ECO "C15"]
[WhiteElo "2195"]
[BlackElo "2135"]
[Annotator "NA"]
[PlyCount "128"]
[EventDate "2018.07.06"]
[EventType "swiss"]
[EventCountry "GER"]
[SourceTitle "playchess.com"]
[Source "ChessBase"]
[SourceQuality "1"]
[TimeControl "40/5400+30:1800+30"]

1. e4 {[%emt 0:00:00]} e6 {[%emt 0:01:04]} 2. d4 {[%emt 0:00:00]} d5 {[%emt 0:00:03]} 3. Nc3 {[%emt 0:00:00]} Bb4 {[%emt 0:00:05]} 4. exd5 {[%emt 0:00:00]} exd5 {[%emt 0:00:03]} 5. Bd3 {[%emt 0:00:06]} Ne7 {[%emt 0:09:44]} 6. Nge2 {[%emt 0:03:46]} c6 {[%emt 0:01:16]} 7. Ng3 {[%emt 0:00:07]} Ng6 {[%emt 0:15:05]} 8. O-O {[%emt 0:05:43]} O-O {[%emt 0:02:25]} 9. Qh5 {[%emt 0:00:13]} Nd7 {[%emt 0:07:12]} 10. Bg5 {[%emt 0:04:20]} Nf6 {[%emt 0:09:24]} 11. Qf3 {[%emt 0:02:21]} Be7 {[%emt 0:00:11]} 12. Nf5 {[%emt 0:01:05]} Bxf5 {[%emt 0:01:26]} 13. Qxf5 {[%emt 0:00:20]} h6 {[%emt 0:02:53]} 14. Bd2 {[%emt 0:11:02]} Bd6 {[%emt 0:04:12]} 15. Rae1 {[%emt 0:07:30]} Bc7 {[%emt 0:05:47]} 16. g3 {[%emt 0:02:49]} Qd6 {[%emt 0:03:00]} 17. Ne2 {[%emt 0:01:09]} Nh4 {[%emt 0:03:52]} 18. Qf4 {[%emt 0:06:57]} Qxf4 {[%emt 0:00:53]} 19. Bxf4 {[%emt 0:00:08]} Nf3+ {[%emt 0:00:48]} 20. Kh1 {[%emt 0:00:06]} Nxe1 {[%emt 0:02:11]} 21. Rxe1 {[%emt 0:00:34]} Bxf4 {[%emt 0:00:09]} 22. Nxf4 {[%emt 0:00:16]} Rfe8 {[%emt 0:00:49]} 23. Rd1 {[%emt 0:00:02]} Re7 {[%emt 0:02:26]} 24. Kg1 {[%emt 0:00:01]} Rae8 {[%emt 0:01:41]} 25. Ng2 {[%emt 0:00:10]} g6 {[%emt 0:02:19]} 26. f3 {[%emt 0:00:47]} b6 {[%emt 0:00:30]} 27. Kf2 {[%emt 0:00:14]} c5 {[%emt 0:00:45]} 28. c3 {[%emt 0:00:25]} Kg7 {[%emt 0:02:09]} 29. Nf4 {[%emt 0:02:11]} c4 {[%emt 0:00:57]} 30. Bf1 {[%emt 0:01:08]} b5 {[%emt 0:00:09]} 31. a3 {[%emt 0:02:34]} a5 {[%emt 0:01:06]} 32. Ra1 {[%emt 0:00:23]} Rb7 {[%emt 0:01:02]} 33. Ng2 {[%emt 0:00:34]} b4 {[%emt 0:01:43]} 34. axb4 {[%emt 0:00:06]} axb4 {[%emt 0:00:01]} 35. Ne3 {[%emt 0:00:43]} bxc3 {[%emt 0:03:22]} 36. bxc3 {[%emt 0:00:26]} Rb3 {[%emt 0:00:06]} 37. Nd1 {[%emt 0:00:36]} Nd7 {[%emt 0:02:57]} 38. Bg2 {[%emt 0:03:31]} Kf8 {[%emt 0:11:39]} 39. f4 {[%emt 0:04:37]} Nf6 {[%emt 0:00:38]} 40. h3 {[%emt 0:02:29]} Kg7 {[%emt 0:01:56]} 41. Bf3 {[%emt 0:30:25]} Re7 {[%emt 0:31:29]} 42. Bg2 {[%emt 0:02:40]} h5 {[%emt 0:00:36]} 43. Bf3 {[%emt 0:00:18]} Re8 {[%emt 0:00:53]} 44. Bg2 {[%emt 0:00:06]} Rbb8 {[%emt 0:00:25]} 45. Rc1 {[%emt 0:02:59]} Ra8 {[%emt 0:00:34]} 46. Rc2 {[%emt 0:00:20]} Ra5 {[%emt 0:00:00]} 47. Ne3 {[%emt 0:00:00]} Rea8 {[%emt 0:00:00]} 48. Re2 {[%emt 0:00:00]} Ra2 {[%emt 0:00:00]} 49. Bxd5 {[%emt 0:00:00]} Rxe2+ {[%emt 0:00:00]} 50. Kxe2 {[%emt 0:00:00]} Ra2+ {[%emt 0:00:00]} 51. Kf3 {[%emt 0:00:00]} Nxd5 {[%emt 0:00:00]} 52. Nxd5 {[%emt 0:00:00]} Rd2 {[%emt 0:00:00]} 53. f5 {[%emt 0:00:00]} g5 {[%emt 0:00:00]} 54. f6+ {[%emt 0:00:00]} Kg6 {[%emt 0:00:00]} 55. g4 {[%emt 0:00:00]} h4 {[%emt 0:00:00]} 56. Ke4 {[%emt 0:00:00]} Rh2 {[%emt 0:00:00]} 57. Ke5 {[%emt 0:00:00]} Rxh3 {[%emt 0:00:00]} 58. Ne7+ {[%emt 0:00:00]} Kh7 {[%emt 0:00:00]} 59. d5 {[%emt 0:00:00]} Rd3 {[%emt 0:00:00]} 60. d6 {[%emt 0:00:00]} h3 {[%emt 0:00:00]} 61. Nd5 {[%emt 0:00:00]} h2 {[%emt 0:00:00]} 62. d7 {[%emt 0:00:00]} h1=Q {[%emt 0:00:00]} 63. d8=Q {[%emt 0:00:00]} Qe1+ {[%emt 0:00:00]} 64. Kf5 {[%emt 0:00:00]} Qe6+ {[%emt 0:00:00]} 0-1